[Event "*** Titled Tuesday Blitz"]
[Site "Chess.com"]
[Date "2020.11.24"]
[Round "2"]
[White "hermionegrangermagic"]
[Black "DanielNaroditsky"]
[Result "0-1"]
[WhiteElo "2584"]
[BlackElo "3027"]
[TimeControl "180+1"]
[EndTime "10:33:16 PST"]
[Termination "DanielNaroditsky won by resignation"]

1. e4 {[%clk 0:03:00.9]} 1... c5 {[%clk 0:02:59.5]} 2. Nf3 {[%clk 0:03:00.3]}
2... d6 {[%clk 0:03:00.1]} 3. d4 {[%clk 0:03:00]} 3... cxd4 {[%clk 0:03:01]} 4.
Nxd4 {[%clk 0:03:00.3]} 4... Nf6 {[%clk 0:03:01.9]} 5. Nc3 {[%clk 0:03:00.1]}
5... Nc6 {[%clk 0:03:02.8]} 6. Bg5 {[%clk 0:02:56.7]} 6... e6 {[%clk 0:03:03.2]}
7. Qd2 {[%clk 0:02:56.2]} 7... a6 {[%clk 0:03:02.9]} 8. O-O-O {[%clk 0:02:56]}
8... Be7 {[%clk 0:03:03.4]} 9. f3 {[%clk 0:02:52.6]} 9... Bd7 {[%clk 0:03:01.2]}
10. h4 {[%clk 0:02:51.5]} 10... Qc7 {[%clk 0:02:57.3]} 11. h5 {[%clk 0:02:40.4]}
11... h6 {[%clk 0:02:56.2]} 12. Be3 {[%clk 0:02:40.2]} 12... b5 {[%clk
0:02:55.5]} 13. Kb1 {[%clk 0:02:38.1]} 13... b4 {[%clk 0:02:55.4]} 14. Nce2
{[%clk 0:02:34.8]} 14... d5 {[%clk 0:02:56]} 15. Nxc6 {[%clk 0:02:28.1]} 15...
Bxc6 {[%clk 0:02:56.9]} 16. e5 {[%clk 0:02:23.8]} 16... Nd7 {[%clk 0:02:54.8]}
17. f4 {[%clk 0:02:15]} 17... a5 {[%clk 0:02:54.1]} 18. Nd4 {[%clk 0:02:09.6]}
18... Nc5 {[%clk 0:02:53.8]} 19. f5 {[%clk 0:01:30.4]} 19... Ne4 {[%clk
0:02:53]} 20. Qe1 {[%clk 0:01:26.8]} 20... Bd7 {[%clk 0:02:44.1]} 21. fxe6
{[%clk 0:01:18.5]} 21... fxe6 {[%clk 0:02:45]} 22. Bd3 {[%clk 0:01:18]} 22...
Qxe5 {[%clk 0:02:43.5]} 23. Nf3 {[%clk 0:01:11.9]} 23... Qc7 {[%clk 0:02:38.4]}
24. Bd4 {[%clk 0:01:06.7]} 24... O-O {[%clk 0:02:17.4]} 25. Bxe4 {[%clk
0:00:59.5]} 25... dxe4 {[%clk 0:02:18.3]} 26. Qxe4 {[%clk 0:00:59.4]} 26... Rac8
{[%clk 0:01:40]} 27. Ne5 {[%clk 0:00:45.5]} 27... Bc6 {[%clk 0:01:34.3]} 28.
Nxc6 {[%clk 0:00:33.4]} 28... Qxc6 {[%clk 0:01:35.2]} 29. Qg6 {[%clk 0:00:33]}
29... Bf6 {[%clk 0:01:35.3]} 30. Rhe1 {[%clk 0:00:23.3]} 30... a4 {[%clk
0:01:31.5]} 31. Qe4 {[%clk 0:00:20]} 31... Bxd4 {[%clk 0:01:27.7]} 32. Rxd4
{[%clk 0:00:18.4]} 32... Qxe4 {[%clk 0:01:13.8]} 33. Rdxe4 {[%clk 0:00:19.3]}
33... Rf2 {[%clk 0:01:13]} 34. Rxb4 {[%clk 0:00:14.6]} 34... Rcxc2 {[%clk
0:01:08]} 35. Rxe6 {[%clk 0:00:09]} 35... Rxg2 {[%clk 0:01:05]} 36. Re1 {[%clk
0:00:09]} 36... Rcf2 {[%clk 0:00:59.1]} 37. Rb5 {[%clk 0:00:08.2]} 37... a3
{[%clk 0:00:55.6]} 38. bxa3 {[%clk 0:00:07.5]} 38... Rxa2 {[%clk 0:00:56.3]} 39.
Rb3 {[%clk 0:00:07.1]} 39... Kh7 {[%clk 0:00:55.1]} 40. Rh1 {[%clk 0:00:06.6]}
40... Rae2 {[%clk 0:00:52.9]} 41. Rb5 {[%clk 0:00:06.1]} 41... Rg4 {[%clk
0:00:48]} 42. Ra5 {[%clk 0:00:05.7]} 42... Rg3 {[%clk 0:00:46.4]} 43. a4 {[%clk
0:00:05.4]} 43... Rb3+ {[%clk 0:00:46.2]} 44. Kc1 {[%clk 0:00:04.3]} 44... Ra3
{[%clk 0:00:47.1]} 45. Kb1 {[%clk 0:00:04.7]} 45... Raa2 {[%clk 0:00:44.2]} 46.
Ra6 {[%clk 0:00:04.1]} 46... Reb2+ {[%clk 0:00:43.8]} 47. Kc1 {[%clk 0:00:04]}
47... Rb4 {[%clk 0:00:44.7]} 48. a5 {[%clk 0:00:03.6]} 48... Ra1+ {[%clk
0:00:44.8]} 49. Kc2 {[%clk 0:00:03.6]} 49... Rxh1 {[%clk 0:00:45.7]} 0-1

[Event "*** Titled Tuesday Blitz"]
[Site "Chess.com"]
[Date "2020.11.24"]
[Round "2"]
[White "xberli"]
[Black "joppie2"]
[Result "0-1"]
[WhiteElo "2570"]
[BlackElo "2963"]
[TimeControl "180+1"]
[EndTime "10:33:17 PST"]
[Termination "joppie2 won by resignation"]

1. d4 {[%clk 0:03:00.9]} 1... d5 {[%clk 0:02:58.5]} 2. c4 {[%clk 0:02:59.6]}
2... e6 {[%clk 0:02:59.1]} 3. Nf3 {[%clk 0:02:59.4]} 3... Nf6 {[%clk 0:02:55.9]}
4. g3 {[%clk 0:02:59.3]} 4... Bb4+ {[%clk 0:02:54.6]} 5. Nbd2 {[%clk 0:02:56.9]}
5... O-O {[%clk 0:02:53.7]} 6. Bg2 {[%clk 0:02:56.7]} 6... b6 {[%clk 0:02:54.2]}
7. O-O {[%clk 0:02:56.8]} 7... Bb7 {[%clk 0:02:54.4]} 8. Qc2 {[%clk 0:02:54.5]}
8... a5 {[%clk 0:02:52.8]} 9. a3 {[%clk 0:02:51.5]} 9... Be7 {[%clk 0:02:52.9]}
10. b3 {[%clk 0:02:50.5]} 10... c5 {[%clk 0:02:46]} 11. dxc5 {[%clk 0:02:48.8]}
11... bxc5 {[%clk 0:02:44.9]} 12. e3 {[%clk 0:02:37.3]} 12... Nc6 {[%clk
0:02:43.2]} 13. Bb2 {[%clk 0:02:33.8]} 13... Qb6 {[%clk 0:02:36.4]} 14. Ne5
{[%clk 0:02:20]} 14... Rfd8 {[%clk 0:02:31]} 15. Rfd1 {[%clk 0:02:14.4]} 15...
Rab8 {[%clk 0:02:22.5]} 16. Rab1 {[%clk 0:02:09.1]} 16... d4 {[%clk 0:02:20.3]}
17. Nxc6 {[%clk 0:01:59.8]} 17... Bxc6 {[%clk 0:02:18.7]} 18. Bxc6 {[%clk
0:01:58.9]} 18... Qxc6 {[%clk 0:02:12.4]} 19. exd4 {[%clk 0:01:58.3]} 19... cxd4
{[%clk 0:02:13.3]} 20. Qd3 {[%clk 0:01:56.8]} 20... e5 {[%clk 0:02:10]} 21. Re1
{[%clk 0:01:55.4]} 21... Nd7 {[%clk 0:02:08.1]} 22. Qf5 {[%clk 0:01:32.4]} 22...
f6 {[%clk 0:02:03]} 23. Bxd4 {[%clk 0:01:28.7]} 23... Bxa3 {[%clk 0:02:01.4]}
24. Bc3 {[%clk 0:01:25.9]} 24... Bb4 {[%clk 0:01:51.8]} 25. Ne4 {[%clk
0:01:18.1]} 25... Nc5 {[%clk 0:01:48.1]} 26. Bxb4 {[%clk 0:01:11.2]} 26... Rxb4
{[%clk 0:01:47.7]} 27. Nxc5 {[%clk 0:01:11.3]} 27... Qxc5 {[%clk 0:01:48.6]} 28.
Red1 {[%clk 0:01:10.2]} 28... Rbb8 {[%clk 0:01:41.3]} 29. h4 {[%clk 0:01:05]}
29... Rd4 {[%clk 0:01:32.1]} 30. h5 {[%clk 0:01:01.4]} 30... h6 {[%clk
0:01:31.1]} 31. Qe6+ {[%clk 0:00:56.7]} 31... Kh7 {[%clk 0:01:28.2]} 32. Rxd4
{[%clk 0:00:50.9]} 32... exd4 {[%clk 0:01:19.1]} 33. Qe4+ {[%clk 0:00:36.8]}
33... Kh8 {[%clk 0:01:18]} 34. Rd1 {[%clk 0:00:36.4]} 34... Rd8 {[%clk 0:01:18]}
35. Qg6 {[%clk 0:00:34.1]} 35... Qe5 {[%clk 0:01:15.5]} 36. Kg2 {[%clk
0:00:31.5]} 36... f5 {[%clk 0:01:13.4]} 37. Kf1 {[%clk 0:00:27.2]} 37... d3
{[%clk 0:01:13.3]} 38. Re1 {[%clk 0:00:25.8]} 38... Qb8 {[%clk 0:01:00.8]} 39.
Qxf5 {[%clk 0:00:20.5]} 39... d2 {[%clk 0:00:57.9]} 40. Rd1 {[%clk 0:00:20.6]}
40... Qxb3 {[%clk 0:00:50.1]} 41. Qg4 {[%clk 0:00:19]} 41... a4 {[%clk
0:00:46.7]} 42. c5 {[%clk 0:00:18.4]} 42... a3 {[%clk 0:00:46.9]} 43. c6 {[%clk
0:00:18.1]} 43... Qb5+ {[%clk 0:00:47.1]} 44. Kg1 {[%clk 0:00:17.9]} 44... Qxc6
{[%clk 0:00:47.5]} 45. Qb4 {[%clk 0:00:17.1]} 45... a2 {[%clk 0:00:46.2]} 46.
Qb2 {[%clk 0:00:16.9]} 46... Qa4 {[%clk 0:00:37.9]} 47. Qa1 {[%clk 0:00:15.4]}
47... Qxd1+ {[%clk 0:00:37.1]} 0-1

[Event "*** Titled Tuesday Blitz"]
[Site "Chess.com"]
[Date "2020.11.24"]
[Round "2"]
[White "Simon_1986"]
[Black "PavelShkapenko"]
[Result "0-1"]
[WhiteElo "2458"]
[BlackElo "2693"]
[TimeControl "180+1"]
[EndTime "10:33:18 PST"]
[Termination "PavelShkapenko won on time"]

1. c4 {[%clk 0:02:56.8]} 1... Nf6 {[%clk 0:02:59.5]} 2. Nc3 {[%clk 0:02:57]}
2... e6 {[%clk 0:02:53.6]} 3. g3 {[%clk 0:02:56.5]} 3... d5 {[%clk 0:02:52.8]}
4. cxd5 {[%clk 0:02:55.1]} 4... exd5 {[%clk 0:02:53.7]} 5. d4 {[%clk 0:02:55.4]}
5... c5 {[%clk 0:02:53.6]} 6. Nf3 {[%clk 0:02:54.6]} 6... Nc6 {[%clk 0:02:51.6]}
7. Bg2 {[%clk 0:02:54.4]} 7... Bg4 {[%clk 0:02:50.9]} 8. Ne5 {[%clk 0:02:40.2]}
8... cxd4 {[%clk 0:02:39.2]} 9. Nxc6 {[%clk 0:02:38.8]} 9... bxc6 {[%clk
0:02:38.4]} 10. Qxd4 {[%clk 0:02:39.2]} 10... Be7 {[%clk 0:02:37.8]} 11. O-O
{[%clk 0:02:38.7]} 11... O-O {[%clk 0:02:35.8]} 12. Bg5 {[%clk 0:02:20.3]} 12...
Be6 {[%clk 0:02:34.3]} 13. Rfd1 {[%clk 0:02:13.3]} 13... h6 {[%clk 0:02:32.3]}
14. Bf4 {[%clk 0:02:06.6]} 14... Qa5 {[%clk 0:02:18.6]} 15. Rac1 {[%clk
0:02:03.6]} 15... c5 {[%clk 0:02:16.3]} 16. Qa4 {[%clk 0:02:02.9]} 16... Qxa4
{[%clk 0:02:12.2]} 17. Nxa4 {[%clk 0:02:03.8]} 17... Rac8 {[%clk 0:02:12.1]} 18.
Be5 {[%clk 0:02:00.5]} 18... Nd7 {[%clk 0:02:04.8]} 19. Bf4 {[%clk 0:01:50.6]}
19... d4 {[%clk 0:01:59.6]} 20. Bb7 {[%clk 0:01:46.3]} 20... Rcd8 {[%clk
0:01:51.3]} 21. Bc7 {[%clk 0:01:45.3]} 21... Rde8 {[%clk 0:01:51.5]} 22. b3
{[%clk 0:01:30.2]} 22... f6 {[%clk 0:01:25.7]} 23. e3 {[%clk 0:01:16]} 23...
dxe3 {[%clk 0:01:25.1]} 24. fxe3 {[%clk 0:01:16.1]} 24... c4 {[%clk 0:01:01.3]}
25. Bc6 {[%clk 0:01:07.4]} 25... Ba3 {[%clk 0:00:55.7]} 26. Rb1 {[%clk 0:00:47]}
26... Re7 {[%clk 0:00:48.2]} 27. bxc4 {[%clk 0:00:38.1]} 27... Ne5 {[%clk
0:00:47.5]} 28. Bxe5 {[%clk 0:00:37.4]} 28... fxe5 {[%clk 0:00:48.4]} 29. Rb3
{[%clk 0:00:31.7]} 29... Rc7 {[%clk 0:00:31.7]} 30. Bd5 {[%clk 0:00:31.8]} 30...
Bxd5 {[%clk 0:00:31.4]} 31. cxd5 {[%clk 0:00:32.2]} 31... Bd6 {[%clk 0:00:31.1]}
32. Rd2 {[%clk 0:00:21.2]} 32... Rfc8 {[%clk 0:00:29.6]} 33. Kg2 {[%clk
0:00:19.5]} 33... Rc2 {[%clk 0:00:29.3]} 34. Rb2 {[%clk 0:00:19.7]} 34... R2c4
{[%clk 0:00:29.2]} 35. Rbc2 {[%clk 0:00:04.8]} 35... Rxc2 {[%clk 0:00:28.7]} 0-1

[Event "*** Titled Tuesday Blitz"]
[Site "Chess.com"]
[Date "2020.11.24"]
[Round "2"]
[White "chessdjw"]
[Black "Vi_Los"]
[Result "1-0"]
[WhiteElo "2663"]
[BlackElo "2352"]
[TimeControl "180+1"]
[EndTime "10:33:18 PST"]
[Termination "chessdjw won by resignation"]

1. e4 {[%clk 0:03:00.9]} 1... e5 {[%clk 0:02:58.6]} 2. Nf3 {[%clk 0:03:01.2]}
2... Nc6 {[%clk 0:02:59]} 3. Bb5 {[%clk 0:03:01.6]} 3... a6 {[%clk 0:02:59.4]}
4. Ba4 {[%clk 0:03:01.7]} 4... Nf6 {[%clk 0:02:59]} 5. d3 {[%clk 0:03:01.4]}
5... b5 {[%clk 0:02:54.9]} 6. Bb3 {[%clk 0:03:01.2]} 6... Bc5 {[%clk 0:02:55]}
7. a4 {[%clk 0:02:52.5]} 7... Rb8 {[%clk 0:02:53.7]} 8. axb5 {[%clk 0:02:50.6]}
8... axb5 {[%clk 0:02:54.6]} 9. Nc3 {[%clk 0:02:48.6]} 9... d6 {[%clk
0:02:48.4]} 10. Nd5 {[%clk 0:02:48.6]} 10... h6 {[%clk 0:02:43.2]} 11. c3 {[%clk
0:02:47]} 11... O-O {[%clk 0:02:40.4]} 12. Nxf6+ {[%clk 0:02:22.1]} 12... Qxf6
{[%clk 0:02:39.7]} 13. Rg1 {[%clk 0:02:21.9]} 13... Bg4 {[%clk 0:02:25.6]} 14.
h3 {[%clk 0:02:21.6]} 14... Bxf3 {[%clk 0:02:24]} 15. Qxf3 {[%clk 0:02:22.5]}
15... Qxf3 {[%clk 0:02:14.3]} 16. gxf3 {[%clk 0:02:23.4]} 16... Kh7 {[%clk
0:02:11.5]} 17. f4 {[%clk 0:02:20.1]} 17... f5 {[%clk 0:01:59.6]} 18. exf5
{[%clk 0:01:50]} 18... exf4 {[%clk 0:01:53.1]} 19. d4 {[%clk 0:01:49.2]} 19...
Rbe8+ {[%clk 0:01:17.2]} 20. Kf1 {[%clk 0:01:48.6]} 20... Bb6 {[%clk 0:01:16.9]}
21. Bc2 {[%clk 0:01:48]} 21... Rf6 {[%clk 0:01:11.2]} 22. Bxf4 {[%clk
0:01:42.3]} 22... b4 {[%clk 0:00:57.3]} 23. Ba4 {[%clk 0:01:31.8]} 23... Re4
{[%clk 0:00:47.8]} 24. Be3 {[%clk 0:01:21.8]} 24... Na5 {[%clk 0:00:37.3]} 25.
Bc2 {[%clk 0:01:15.3]} 25... Re7 {[%clk 0:00:36.8]} 26. Bd3 {[%clk 0:01:08.7]}
26... bxc3 {[%clk 0:00:32.7]} 27. bxc3 {[%clk 0:01:06.2]} 27... Nc6 {[%clk
0:00:26.8]} 28. Rg6 {[%clk 0:00:59.4]} 28... Ref7 {[%clk 0:00:20.3]} 29. Ra8
{[%clk 0:00:57.2]} 29... Rf8 {[%clk 0:00:19.1]} 30. Rxf8 {[%clk 0:00:56.6]}
30... Rxf8 {[%clk 0:00:19.1]} 31. f6 {[%clk 0:00:57.1]} 31... gxf6 {[%clk
0:00:17.7]} 32. Rxf6+ {[%clk 0:00:57.2]} 32... Kg7 {[%clk 0:00:18]} 33. Rg6+
{[%clk 0:00:57.4]} 33... Kf7 {[%clk 0:00:18.4]} 34. Bxh6 {[%clk 0:00:57.2]}
34... Re8 {[%clk 0:00:17.5]} 35. h4 {[%clk 0:00:52.5]} 35... Ne7 {[%clk
0:00:15.4]} 36. Rg7+ {[%clk 0:00:51.9]} 36... Ke6 {[%clk 0:00:15.8]} 37. h5
{[%clk 0:00:44.3]} 37... c5 {[%clk 0:00:15.5]} 38. Be3 {[%clk 0:00:32.3]} 38...
cxd4 {[%clk 0:00:15.6]} 39. cxd4 {[%clk 0:00:33]} 39... Rh8 {[%clk 0:00:14.4]}
40. h6 {[%clk 0:00:30.4]} 40... Nd5 {[%clk 0:00:14.6]} 41. Bc4 {[%clk
0:00:30.2]} 1-0

[Event "*** Titled Tuesday Blitz"]
[Site "Chess.com"]
[Date "2020.11.24"]
[Round "2"]
[White "AryanTari"]
[Black "biostatistician"]
[Result "1-0"]
[WhiteElo "2903"]
[BlackElo "2543"]
[TimeControl "180+1"]
[EndTime "10:33:20 PST"]
[Termination "AryanTari won on time"]

1. d4 {[%clk 0:03:00.9]} 1... Nf6 {[%clk 0:02:59.3]} 2. c4 {[%clk 0:03:01.1]}
2... g6 {[%clk 0:02:59.6]} 3. Nc3 {[%clk 0:03:00.8]} 3... Bg7 {[%clk 0:03:00.5]}
4. e4 {[%clk 0:03:00.7]} 4... d6 {[%clk 0:03:01]} 5. Nf3 {[%clk 0:03:01.2]} 5...
O-O {[%clk 0:03:01.9]} 6. Be2 {[%clk 0:03:01.6]} 6... e5 {[%clk 0:03:02.2]} 7.
Be3 {[%clk 0:03:02.1]} 7... Ng4 {[%clk 0:02:59.2]} 8. Bg5 {[%clk 0:03:00.5]}
8... f6 {[%clk 0:02:59.3]} 9. Bh4 {[%clk 0:03:00.7]} 9... Nc6 {[%clk 0:02:58.5]}
10. d5 {[%clk 0:03:00.1]} 10... Ne7 {[%clk 0:02:59]} 11. Nd2 {[%clk 0:02:58.4]}
11... Nh6 {[%clk 0:02:58.5]} 12. O-O {[%clk 0:02:49.3]} 12... g5 {[%clk
0:02:46.7]} 13. Bg3 {[%clk 0:02:49.2]} 13... f5 {[%clk 0:02:47.3]} 14. exf5
{[%clk 0:02:47.3]} 14... Nhxf5 {[%clk 0:02:47.6]} 15. Nde4 {[%clk 0:02:41.6]}
15... Ng6 {[%clk 0:02:40.9]} 16. c5 {[%clk 0:02:26.1]} 16... Nf4 {[%clk
0:02:31.3]} 17. Bf3 {[%clk 0:02:24.6]} 17... Bd7 {[%clk 0:02:22.7]} 18. Bg4
{[%clk 0:02:12.6]} 18... Qe7 {[%clk 0:02:17.2]} 19. b4 {[%clk 0:01:47]} 19...
Kh8 {[%clk 0:02:14.9]} 20. Re1 {[%clk 0:01:42.3]} 20... a5 {[%clk 0:02:08.2]}
21. cxd6 {[%clk 0:01:33.7]} 21... cxd6 {[%clk 0:02:07.8]} 22. bxa5 {[%clk
0:01:31.6]} 22... Rxa5 {[%clk 0:02:07.6]} 23. a4 {[%clk 0:01:31.8]} 23... Raa8
{[%clk 0:01:34.3]} 24. Rb1 {[%clk 0:01:26.8]} 24... Be8 {[%clk 0:01:26.3]} 25.
Nb5 {[%clk 0:01:18.1]} 25... Ra6 {[%clk 0:01:21.9]} 26. Rc1 {[%clk 0:00:58.4]}
26... Qf7 {[%clk 0:00:21.4]} 27. Bxf5 {[%clk 0:00:48.5]} 27... Qxf5 {[%clk
0:00:21.5]} 28. Nexd6 {[%clk 0:00:48.8]} 28... Qg6 {[%clk 0:00:16.6]} 29. Nxe8
{[%clk 0:00:48.3]} 29... Rxe8 {[%clk 0:00:16.7]} 30. Nc7 {[%clk 0:00:47.9]}
30... Ra5 {[%clk 0:00:09.4]} 31. Nxe8 {[%clk 0:00:47.4]} 31... Qxe8 {[%clk
0:00:10.3]} 32. d6 {[%clk 0:00:46.9]} 32... Rd5 {[%clk 0:00:10.8]} 33. Qb3
{[%clk 0:00:45]} 33... Rxd6 {[%clk 0:00:11]} 34. Qxb7 {[%clk 0:00:44.4]} 34...
Rd8 {[%clk 0:00:08.8]} 35. Bxf4 {[%clk 0:00:41.7]} 35... gxf4 {[%clk 0:00:08.9]}
36. Rc7 {[%clk 0:00:41.3]} 36... Qg6 {[%clk 0:00:09.1]} 37. Rc8 {[%clk
0:00:40.3]} 37... Qe8 {[%clk 0:00:04.7]} 38. Rxd8 {[%clk 0:00:38.7]} 38... Qxd8
{[%clk 0:00:05.6]} 39. a5 {[%clk 0:00:38.5]} 1-0

[Event "*** Titled Tuesday Blitz"]
[Site "Chess.com"]
[Date "2020.11.24"]
[Round "2"]
[White "CheckThis4"]
[Black "Beca95"]
[Result "0-1"]
[WhiteElo "2558"]
[BlackElo "2926"]
[TimeControl "180+1"]
[EndTime "10:33:21 PST"]
[Termination "Beca95 won on time"]

1. d4 {[%clk 0:03:00.9]} 1... g6 {[%clk 0:02:52.5]} 2. e4 {[%clk 0:02:59.8]}
2... Bg7 {[%clk 0:02:39.4]} 3. Nc3 {[%clk 0:03:00.3]} 3... a6 {[%clk 0:02:39.1]}
4. Be3 {[%clk 0:02:59]} 4... b5 {[%clk 0:02:39.2]} 5. Bd3 {[%clk 0:02:57.8]}
5... Bb7 {[%clk 0:02:37.4]} 6. Nf3 {[%clk 0:02:54]} 6... d6 {[%clk 0:02:36.1]}
7. e5 {[%clk 0:02:53.6]} 7... e6 {[%clk 0:02:25.2]} 8. Qe2 {[%clk 0:02:43.8]}
8... Nd7 {[%clk 0:02:22.2]} 9. Bg5 {[%clk 0:02:35]} 9... Ne7 {[%clk 0:02:17.8]}
10. O-O-O {[%clk 0:02:20.1]} 10... Bxf3 {[%clk 0:01:58.6]} 11. Qxf3 {[%clk
0:02:13.4]} 11... d5 {[%clk 0:01:56.6]} 12. h4 {[%clk 0:01:57.2]} 12... h6
{[%clk 0:01:47.4]} 13. Bf6 {[%clk 0:01:45.7]} 13... Bxf6 {[%clk 0:01:36.8]} 14.
exf6 {[%clk 0:01:46.6]} 14... Nc8 {[%clk 0:01:19.4]} 15. Nxd5 {[%clk 0:01:37.5]}
15... exd5 {[%clk 0:01:13.2]} 16. Rde1+ {[%clk 0:01:29.7]} 16... Kf8 {[%clk
0:01:11.5]} 17. Qxd5 {[%clk 0:01:29.6]} 17... Nd6 {[%clk 0:01:08.9]} 18. Rh3
{[%clk 0:01:09.4]} 18... Nxf6 {[%clk 0:01:06.5]} 19. Qc5 {[%clk 0:01:09.2]}
19... Kg7 {[%clk 0:00:58.8]} 20. Rf3 {[%clk 0:01:07.4]} 20... Re8 {[%clk
0:00:54.6]} 21. Re5 {[%clk 0:00:59.9]} 21... Nd7 {[%clk 0:00:39.1]} 22. Qd5
{[%clk 0:00:54.7]} 22... Nxe5 {[%clk 0:00:34.3]} 23. dxe5 {[%clk 0:00:55.6]}
23... Nf5 {[%clk 0:00:34.4]} 24. Qe4 {[%clk 0:00:47.7]} 24... Qxh4 {[%clk
0:00:31]} 25. g4 {[%clk 0:00:45.6]} 25... Qg5+ {[%clk 0:00:27.7]} 26. Kb1 {[%clk
0:00:44.3]} 26... Nd6 {[%clk 0:00:21.8]} 27. Qc6 {[%clk 0:00:35.4]} 27... Qxe5
{[%clk 0:00:19.7]} 28. a3 {[%clk 0:00:35.8]} 28... Rac8 {[%clk 0:00:18.2]} 29.
Qxa6 {[%clk 0:00:32.4]} 29... Re7 {[%clk 0:00:18.5]} 30. Qc6 {[%clk 0:00:29.1]}
30... Qg5 {[%clk 0:00:18.2]} 31. Qa6 {[%clk 0:00:25.6]} 31... Rce8 {[%clk
0:00:18.1]} 32. b3 {[%clk 0:00:22.8]} 32... Re1+ {[%clk 0:00:16.7]} 33. Ka2
{[%clk 0:00:23]} 33... Qe5 {[%clk 0:00:17.1]} 34. c3 {[%clk 0:00:08.8]} 34...
Qxc3 {[%clk 0:00:16.4]} 0-1

[Event "*** Titled Tuesday Blitz"]
[Site "Chess.com"]
[Date "2020.11.24"]
[Round "2"]
[White "HackingKid98"]
[Black "Vincent_Vega95"]
[Result "0-1"]
[WhiteElo "2350"]
[BlackElo "2809"]
[TimeControl "180+1"]
[EndTime "10:33:21 PST"]
[Termination "Vincent_Vega95 won on time"]

1. d4 {[%clk 0:03:00.9]} 1... Nf6 {[%clk 0:03:00]} 2. c4 {[%clk 0:02:52.5]} 2...
g6 {[%clk 0:03:00.3]} 3. g3 {[%clk 0:02:52.3]} 3... Bg7 {[%clk 0:03:00.7]} 4.
Bg2 {[%clk 0:02:52.3]} 4... O-O {[%clk 0:03:01.6]} 5. Nf3 {[%clk 0:02:52.2]}
5... d6 {[%clk 0:03:02]} 6. O-O {[%clk 0:02:51.5]} 6... c6 {[%clk 0:03:02.7]} 7.
Nc3 {[%clk 0:02:50.6]} 7... Bf5 {[%clk 0:03:03.4]} 8. Ne1 {[%clk 0:02:49.7]}
8... e5 {[%clk 0:03:02.2]} 9. d5 {[%clk 0:02:45.3]} 9... cxd5 {[%clk 0:03:02.5]}
10. Nxd5 {[%clk 0:02:38.6]} 10... Nxd5 {[%clk 0:03:01]} 11. Bxd5 {[%clk
0:02:39.5]} 11... Nc6 {[%clk 0:03:01.2]} 12. Be3 {[%clk 0:02:36.1]} 12... Qd7
{[%clk 0:02:53.4]} 13. Qd2 {[%clk 0:02:27.5]} 13... Bh3 {[%clk 0:02:24.9]} 14.
Bg2 {[%clk 0:02:24.2]} 14... Bxg2 {[%clk 0:02:21.7]} 15. Kxg2 {[%clk 0:02:25.1]}
15... f5 {[%clk 0:02:19]} 16. Nd3 {[%clk 0:02:13.2]} 16... Qe6 {[%clk
0:02:03.9]} 17. Rac1 {[%clk 0:02:04.1]} 17... b6 {[%clk 0:01:51]} 18. Rfd1
{[%clk 0:01:49.8]} 18... Rae8 {[%clk 0:01:46.3]} 19. Nb4 {[%clk 0:01:46.3]}
19... Nxb4 {[%clk 0:01:43.2]} 20. Qxb4 {[%clk 0:01:47.2]} 20... f4 {[%clk
0:01:43.8]} 21. Rxd6 {[%clk 0:01:20]} 21... Qf5 {[%clk 0:01:39.3]} 22. Bd2
{[%clk 0:00:50.4]} 22... fxg3 {[%clk 0:01:14.6]} 23. fxg3 {[%clk 0:00:16.2]}
23... Qe4+ {[%clk 0:01:00.5]} 24. Kg1 {[%clk 0:00:12.9]} 24... Qxe2 {[%clk
0:01:00]} 25. Re1 {[%clk 0:00:09.7]} 25... Qf2+ {[%clk 0:00:59.2]} 26. Kh1
{[%clk 0:00:09.2]} 26... e4 {[%clk 0:00:52.3]} 27. Qb3 {[%clk 0:00:08.5]} 27...
e3 {[%clk 0:00:42.5]} 28. c5+ {[%clk 0:00:08.3]} 28... Kh8 {[%clk 0:00:42.4]}
29. Bc3 {[%clk 0:00:08.5]} 29... e2 {[%clk 0:00:32.4]} 30. Bxg7+ {[%clk
0:00:07.8]} 30... Kxg7 {[%clk 0:00:33.2]} 31. Qc3+ {[%clk 0:00:08.3]} 31... Kg8
{[%clk 0:00:28.1]} 32. Qc4+ {[%clk 0:00:08.1]} 32... Rf7 {[%clk 0:00:28.4]} 33.
Qc3 {[%clk 0:00:03.3]} 33... Qf1+ {[%clk 0:00:26.8]} 0-1